[Event "*** Titled Tuesday Blitz"]
[Site "Chess.com"]
[Date "2018.05.01"]
[Round "10"]
[White "swayamsm"]
[Black "Shtembuliak"]
[Result "1-0"]
[WhiteElo "2597"]
[BlackElo "2686"]
[TimeControl "180+2"]
[EndTime "15:13:45 PDT"]
[Termination "swayamsm won by checkmate"]

1. d4 {[%clk 0:02:54.4]} 1... Nf6 {[%clk 0:03:00.5]} 2. Nf3 {[%clk 0:02:49]}
2... d6 {[%clk 0:03:00.7]} 3. c4 {[%clk 0:02:40.2]} 3... g6 {[%clk 0:03:00.8]}
4. Nc3 {[%clk 0:02:38.9]} 4... Bf5 {[%clk 0:03:01.7]} 5. g3 {[%clk 0:02:31.2]}
5... Bg7 {[%clk 0:03:02.2]} 6. Bg2 {[%clk 0:02:32.2]} 6... O-O {[%clk
0:03:03.6]} 7. O-O {[%clk 0:02:27.7]} 7... c6 {[%clk 0:03:02.4]} 8. Re1 {[%clk
0:02:25.9]} 8... Ne4 {[%clk 0:03:03]} 9. Bd2 {[%clk 0:02:23.9]} 9... Nxd2 {[%clk
0:02:49.5]} 10. Qxd2 {[%clk 0:02:14.9]} 10... a5 {[%clk 0:02:47.3]} 11. e4
{[%clk 0:02:14.6]} 11... Bg4 {[%clk 0:02:48.2]} 12. Qe3 {[%clk 0:02:09.1]} 12...
Bxf3 {[%clk 0:02:48.6]} 13. Bxf3 {[%clk 0:02:05.9]} 13... Nd7 {[%clk 0:02:26]}
14. Rad1 {[%clk 0:02:03.8]} 14... Qc7 {[%clk 0:02:11]} 15. h4 {[%clk 0:02:01.5]}
15... h5 {[%clk 0:02:07.8]} 16. g4 {[%clk 0:01:55.6]} 16... hxg4 {[%clk
0:02:07.6]} 17. Bxg4 {[%clk 0:01:57.5]} 17... Nf6 {[%clk 0:02:08.5]} 18. Bf3
{[%clk 0:01:55.6]} 18... e5 {[%clk 0:02:02.2]} 19. d5 {[%clk 0:01:48.2]} 19...
Kh7 {[%clk 0:01:59.1]} 20. h5 {[%clk 0:01:35.9]} 20... Bh6 {[%clk 0:01:57.5]}
21. hxg6+ {[%clk 0:01:23.5]} 21... fxg6 {[%clk 0:01:57.3]} 22. Qe2 {[%clk
0:01:21.7]} 22... Rf7 {[%clk 0:01:53.4]} 23. Rd3 {[%clk 0:01:22.8]} 23... Raf8
{[%clk 0:01:53.3]} 24. Rf1 {[%clk 0:01:13.2]} 24... cxd5 {[%clk 0:01:48.8]} 25.
cxd5 {[%clk 0:01:06.5]} 25... Qb6 {[%clk 0:01:40.7]} 26. Kg2 {[%clk 0:01:06.8]}
26... Kg7 {[%clk 0:01:37.4]} 27. Nd1 {[%clk 0:00:59.2]} 27... Nh7 {[%clk
0:01:17]} 28. Bg4 {[%clk 0:00:57.1]} 28... Rf4 {[%clk 0:01:10.7]} 29. Rg3 {[%clk
0:00:43.1]} 29... Bg5 {[%clk 0:01:03.9]} 30. Rh1 {[%clk 0:00:37.9]} 30... Nf6
{[%clk 0:01:00.9]} 31. f3 {[%clk 0:00:26.9]} 31... Nxg4 {[%clk 0:00:58.2]} 32.
Rxg4 {[%clk 0:00:28.2]} 32... Rxg4+ {[%clk 0:00:59.1]} 33. fxg4 {[%clk
0:00:28.2]} 33... Qd4 {[%clk 0:00:56.1]} 34. Rf1 {[%clk 0:00:26.9]} 34... Rh8
{[%clk 0:00:52.4]} 35. Rh1 {[%clk 0:00:20.5]} 35... Rf8 {[%clk 0:00:42.4]} 36.
Rf1 {[%clk 0:00:21.3]} 36... Rc8 {[%clk 0:00:43.3]} 37. Nc3 {[%clk 0:00:19.6]}
37... Bf4 {[%clk 0:00:34.1]} 38. Qf2 {[%clk 0:00:18.8]} 38... Qb4 {[%clk
0:00:21.9]} 39. a3 {[%clk 0:00:17.3]} 39... Qb3 {[%clk 0:00:22.3]} 40. Rh1
{[%clk 0:00:16.6]} 40... g5 {[%clk 0:00:21.8]} 41. Kf1 {[%clk 0:00:15.1]} 41...
b5 {[%clk 0:00:13.7]} 42. Qa7+ {[%clk 0:00:09.3]} 42... Kg8 {[%clk 0:00:03.1]}
43. Qh7+ {[%clk 0:00:09.4]} 43... Kf8 {[%clk 0:00:04.1]} 44. Qh8+ {[%clk
0:00:10.1]} 44... Kf7 {[%clk 0:00:04.6]} 45. Rh7+ {[%clk 0:00:12]} 45... Kg6
{[%clk 0:00:05.1]} 46. Qg7# {[%clk 0:00:13.6]} 1-0

[Event "*** Titled Tuesday Blitz"]
[Site "Chess.com"]
[Date "2018.05.01"]
[Round "10"]
[White "Bryakin_Mikhail"]
[Black "Kangoroo3000"]
[Result "1-0"]
[WhiteElo "2605"]
[BlackElo "2412"]
[TimeControl "180+2"]
[EndTime "15:13:52 PDT"]
[Termination "Bryakin_Mikhail won by resignation"]

1. d4 {[%clk 0:03:01.9]} 1... Nf6 {[%clk 0:03:00.2]} 2. c4 {[%clk 0:03:02.7]}
2... e6 {[%clk 0:03:01.2]} 3. Nf3 {[%clk 0:02:58.8]} 3... d5 {[%clk 0:03:02.2]}
4. e3 {[%clk 0:02:57.1]} 4... Be7 {[%clk 0:03:00.1]} 5. Nbd2 {[%clk 0:02:58.3]}
5... O-O {[%clk 0:03:00.6]} 6. Bd3 {[%clk 0:02:58.4]} 6... c5 {[%clk 0:03:00.9]}
7. O-O {[%clk 0:02:57.8]} 7... Nc6 {[%clk 0:03:01.4]} 8. dxc5 {[%clk 0:02:54.8]}
8... Bxc5 {[%clk 0:03:03.3]} 9. Qe2 {[%clk 0:02:54.1]} 9... e5 {[%clk
0:02:45.5]} 10. cxd5 {[%clk 0:02:48.4]} 10... Nxd5 {[%clk 0:02:46.6]} 11. a3
{[%clk 0:02:42.5]} 11... a5 {[%clk 0:02:45.2]} 12. Rd1 {[%clk 0:02:39]} 12...
Be6 {[%clk 0:02:27.8]} 13. Ne4 {[%clk 0:02:28.6]} 13... Be7 {[%clk 0:02:24.5]}
14. Bc4 {[%clk 0:02:27.9]} 14... f5 {[%clk 0:02:18]} 15. Bxd5 {[%clk 0:02:27]}
15... Bxd5 {[%clk 0:02:19.9]} 16. Nc3 {[%clk 0:02:27.3]} 16... Bxf3 {[%clk
0:02:18.5]} 17. Qxf3 {[%clk 0:02:28.7]} 17... Qe8 {[%clk 0:02:07.2]} 18. Qd5+
{[%clk 0:02:26.1]} 18... Kh8 {[%clk 0:02:05.1]} 19. Qb5 {[%clk 0:02:24.8]} 19...
f4 {[%clk 0:01:54.6]} 20. Qxb7 {[%clk 0:02:02.7]} 20... Qg6 {[%clk 0:01:38.3]}
21. exf4 {[%clk 0:02:02.8]} 21... exf4 {[%clk 0:01:34.5]} 22. Bxf4 {[%clk
0:01:08.7]} 22... Ra7 {[%clk 0:01:22.5]} 23. Qb6 {[%clk 0:01:09.8]} 23... Rxf4
{[%clk 0:01:15]} 24. Nd5 {[%clk 0:01:09.2]} 24... Rg4 {[%clk 0:01:09.6]} 25. Ne3
{[%clk 0:00:49.5]} 25... Rg5 {[%clk 0:01:06.9]} 26. Rac1 {[%clk 0:00:47.9]}
26... Ra8 {[%clk 0:00:14.1]} 27. Rxc6 {[%clk 0:00:44.3]} 27... Qf7 {[%clk
0:00:14.6]} 28. Rc7 {[%clk 0:00:36.1]} 28... Rf8 {[%clk 0:00:14.9]} 29. Rf1
{[%clk 0:00:33.6]} 29... h5 {[%clk 0:00:12.7]} 30. Qb7 {[%clk 0:00:33.4]} 30...
Re5 {[%clk 0:00:12.9]} 31. Nc4 {[%clk 0:00:20.3]} 31... Re6 {[%clk 0:00:10.6]}
32. Nxa5 {[%clk 0:00:16.9]} 32... Re2 {[%clk 0:00:10]} 33. Qf3 {[%clk
0:00:16.1]} 33... Qxf3 {[%clk 0:00:07.7]} 34. gxf3 {[%clk 0:00:18]} 34... Bd8
{[%clk 0:00:07.2]} 35. Rc8 {[%clk 0:00:17.3]} 35... Rxb2 {[%clk 0:00:07.5]} 36.
Nc6 {[%clk 0:00:17.6]} 36... Rd2 {[%clk 0:00:05.3]} 37. a4 {[%clk 0:00:18.5]}
37... Kg8 {[%clk 0:00:05.3]} 38. Nxd8 {[%clk 0:00:17.7]} 38... Rfxd8 {[%clk
0:00:06.8]} 39. Rxd8+ {[%clk 0:00:19.6]} 39... Rxd8 {[%clk 0:00:08.2]} 40. Ra1
{[%clk 0:00:21.5]} 40... Ra8 {[%clk 0:00:09.3]} 41. a5 {[%clk 0:00:22.9]} 41...
Ra6 {[%clk 0:00:10.8]} 42. f4 {[%clk 0:00:23.5]} 42... Kf7 {[%clk 0:00:12.7]}
43. Kg2 {[%clk 0:00:25]} 43... Ke6 {[%clk 0:00:13.9]} 44. Kg3 {[%clk 0:00:25.5]}
44... Kf5 {[%clk 0:00:15.2]} 45. Kf3 {[%clk 0:00:27.1]} 45... h4 {[%clk
0:00:14.6]} 46. h3 {[%clk 0:00:28]} 46... g6 {[%clk 0:00:15.3]} 47. Ke3 {[%clk
0:00:29]} 47... Re6+ {[%clk 0:00:15.4]} 48. Kf3 {[%clk 0:00:30.1]} 48... Ra6
{[%clk 0:00:16]} 49. Ra4 {[%clk 0:00:31.2]} 49... Ke6 {[%clk 0:00:12.4]} 50. Kg4
{[%clk 0:00:32.4]} 50... Kf6 {[%clk 0:00:10.6]} 51. Kxh4 {[%clk 0:00:33.7]}
51... Kf5 {[%clk 0:00:12.1]} 52. Kg3 {[%clk 0:00:35.2]} 52... Ra8 {[%clk
0:00:10.6]} 53. a6 {[%clk 0:00:35.2]} 1-0

[Event "*** Titled Tuesday Blitz"]
[Site "Chess.com"]
[Date "2018.05.01"]
[Round "10"]
[White "AndrewDGreen"]
[Black "Kouzari"]
[Result "0-1"]
[WhiteElo "2183"]
[BlackElo "2617"]
[TimeControl "180+2"]
[EndTime "15:13:52 PDT"]
[Termination "Kouzari won by resignation"]

1. d4 {[%clk 0:03:01.9]} 1... d5 {[%clk 0:02:59.4]} 2. Bf4 {[%clk 0:03:01.8]}
2... c6 {[%clk 0:03:01.3]} 3. c4 {[%clk 0:03:01.5]} 3... Bf5 {[%clk 0:03:03.2]}
4. Qb3 {[%clk 0:02:51.3]} 4... Bxb1 {[%clk 0:03:05.1]} 5. Rxb1 {[%clk
0:02:51.2]} 5... Qb6 {[%clk 0:02:51.5]} 6. c5 {[%clk 0:02:50.5]} 6... Qxb3
{[%clk 0:02:49.8]} 7. axb3 {[%clk 0:02:52.4]} 7... a6 {[%clk 0:02:48.6]} 8. e3
{[%clk 0:02:49.8]} 8... Nd7 {[%clk 0:02:50]} 9. Nf3 {[%clk 0:02:49.4]} 9... f6
{[%clk 0:02:50]} 10. b4 {[%clk 0:02:35.3]} 10... g5 {[%clk 0:02:49.2]} 11. Bg3
{[%clk 0:02:33.9]} 11... h5 {[%clk 0:02:50.7]} 12. h3 {[%clk 0:02:29]} 12... h4
{[%clk 0:02:49.8]} 13. Bh2 {[%clk 0:02:29.3]} 13... Kf7 {[%clk 0:02:50.3]} 14.
Bd3 {[%clk 0:02:22.9]} 14... e6 {[%clk 0:02:50.2]} 15. Ra1 {[%clk 0:02:12.8]}
15... Re8 {[%clk 0:02:42.1]} 16. b5 {[%clk 0:02:06.8]} 16... cxb5 {[%clk
0:02:42.6]} 17. c6 {[%clk 0:02:06.9]} 17... bxc6 {[%clk 0:02:31.2]} 18. Rxa6
{[%clk 0:02:07.1]} 18... Rc8 {[%clk 0:02:32.4]} 19. Ra7 {[%clk 0:02:02.5]} 19...
Ke8 {[%clk 0:02:31.7]} 20. Ke2 {[%clk 0:01:53.7]} 20... Kd8 {[%clk 0:02:23.4]}
21. Rha1 {[%clk 0:01:31.1]} 21... Ne7 {[%clk 0:02:17]} 22. Rb7 {[%clk
0:01:25.2]} 22... Nf5 {[%clk 0:02:13.7]} 23. Raa7 {[%clk 0:01:20.9]} 23... Rh7
{[%clk 0:02:13.8]} 24. Nd2 {[%clk 0:00:44.2]} 24... Rg7 {[%clk 0:02:05.6]} 25.
Bxf5 {[%clk 0:00:34.1]} 25... exf5 {[%clk 0:02:06]} 26. Nb3 {[%clk 0:00:35.6]}
26... Bb4 {[%clk 0:02:03.3]} 27. Na5 {[%clk 0:00:30.2]} 27... Bxa5 {[%clk
0:02:04]} 28. Rxa5 {[%clk 0:00:31]} 28... Re7 {[%clk 0:02:01.1]} 29. Bd6 {[%clk
0:00:30.5]} 29... Re6 {[%clk 0:02:01.3]} 30. Bb4 {[%clk 0:00:27.3]} 30... Rb8
{[%clk 0:01:58.9]} 31. Raa7 {[%clk 0:00:14.9]} 31... Rxb7 {[%clk 0:01:59]} 32.
Rxb7 {[%clk 0:00:16.8]} 32... f4 {[%clk 0:01:56]} 33. Kf3 {[%clk 0:00:15]} 33...
fxe3 {[%clk 0:01:56.4]} 34. fxe3 {[%clk 0:00:16.9]} 34... f5 {[%clk 0:01:56]}
35. Ba5+ {[%clk 0:00:15.9]} 35... Ke8 {[%clk 0:01:56]} 36. Bb4 {[%clk
0:00:15.5]} 36... Nf6 {[%clk 0:01:54.4]} 37. Rc7 {[%clk 0:00:15.5]} 37... Ne4
{[%clk 0:01:38.6]} 38. Rg7 {[%clk 0:00:15.8]} 38... Rf6 {[%clk 0:01:24.9]} 39.
Rg8+ {[%clk 0:00:16.3]} 39... Kf7 {[%clk 0:01:24.2]} 40. Rf8+ {[%clk 0:00:16.7]}
40... Kg6 {[%clk 0:01:25.1]} 41. Rg8+ {[%clk 0:00:13.3]} 41... Kh5 {[%clk
0:01:26]} 42. Rh8+ {[%clk 0:00:14.1]} 42... Rh6 {[%clk 0:01:26.5]} 43. Rf8
{[%clk 0:00:14.8]} 43... Rf6 {[%clk 0:01:23.6]} 44. Rh8+ {[%clk 0:00:15.5]}
44... Kg6 {[%clk 0:01:24.8]} 45. Rg8+ {[%clk 0:00:16.4]} 45... Kh7 {[%clk
0:01:25.7]} 46. Rc8 {[%clk 0:00:16.5]} 46... Rg6 {[%clk 0:01:23.2]} 47. Bf8
{[%clk 0:00:16]} 47... g4+ {[%clk 0:01:14.1]} 48. Kf4 {[%clk 0:00:16.2]} 48...
gxh3 {[%clk 0:01:15.2]} 49. gxh3 {[%clk 0:00:18.1]} 49... Rg3 {[%clk 0:01:16.4]}
50. Rc7+ {[%clk 0:00:16.3]} 50... Kg8 {[%clk 0:01:14.9]} 51. Be7 {[%clk
0:00:17.2]} 51... Rxh3 {[%clk 0:01:14.6]} 52. Rxc6 {[%clk 0:00:15.9]} 52... Kf7
{[%clk 0:01:12.5]} 53. Bd8 {[%clk 0:00:15.8]} 53... Rh1 {[%clk 0:01:12.5]} 54.
Rh6 {[%clk 0:00:14.9]} 54... h3 {[%clk 0:01:13]} 55. Ke5 {[%clk 0:00:15.2]}
55... h2 {[%clk 0:01:11.3]} 56. Kxd5 {[%clk 0:00:16.3]} 56... b4 {[%clk
0:00:54.5]} 57. Bc7 {[%clk 0:00:17.2]} 57... Nf6+ {[%clk 0:00:55.4]} 58. Ke5
{[%clk 0:00:12.5]} 58... Ng4+ {[%clk 0:00:56]} 59. Kxf5 {[%clk 0:00:11.6]} 59...
Nxh6+ {[%clk 0:00:57.4]} 0-1

[Event "*** Titled Tuesday Blitz"]
[Site "Chess.com"]
[Date "2018.05.01"]
[Round "10"]
[White "PrinceCharming92"]
[Black "BlackBoarder"]
[Result "1-0"]
[WhiteElo "2476"]
[BlackElo "2230"]
[TimeControl "180+2"]
[EndTime "15:14:07 PDT"]
[Termination "PrinceCharming92 won on time"]

1. e4 {[%clk 0:03:01.9]} 1... e6 {[%clk 0:02:58]} 2. d3 {[%clk 0:03:01.9]} 2...
d5 {[%clk 0:02:58.6]} 3. Qe2 {[%clk 0:03:02.3]} 3... dxe4 {[%clk 0:02:48.1]} 4.
dxe4 {[%clk 0:03:00.7]} 4... b6 {[%clk 0:02:48.1]} 5. c3 {[%clk 0:03:01.3]} 5...
Ba6 {[%clk 0:02:48.6]} 6. Qc2 {[%clk 0:03:02.8]} 6... Bxf1 {[%clk 0:02:47.8]} 7.
Kxf1 {[%clk 0:03:04.7]} 7... e5 {[%clk 0:02:47.6]} 8. g3 {[%clk 0:03:04.7]} 8...
Nc6 {[%clk 0:02:45]} 9. Kg2 {[%clk 0:03:05.5]} 9... Nf6 {[%clk 0:02:23.2]} 10.
Nf3 {[%clk 0:03:05]} 10... Bd6 {[%clk 0:02:22.8]} 11. Bg5 {[%clk 0:02:53.9]}
11... O-O {[%clk 0:02:22.3]} 12. Nbd2 {[%clk 0:02:52.5]} 12... h6 {[%clk
0:02:22.3]} 13. Bxf6 {[%clk 0:02:51.8]} 13... Qxf6 {[%clk 0:02:24.2]} 14. Nc4
{[%clk 0:02:51.2]} 14... a5 {[%clk 0:01:47.4]} 15. Rad1 {[%clk 0:02:48.6]} 15...
Bc5 {[%clk 0:01:43.1]} 16. Rd5 {[%clk 0:02:39.3]} 16... Qe6 {[%clk 0:01:35.2]}
17. Ncxe5 {[%clk 0:02:15.5]} 17... Nxe5 {[%clk 0:01:32.2]} 18. Rxe5 {[%clk
0:02:07.8]} 18... Qxa2 {[%clk 0:01:32.9]} 19. c4 {[%clk 0:01:44.9]} 19... Rfe8
{[%clk 0:01:06.4]} 20. Rd5 {[%clk 0:01:34.1]} 20... a4 {[%clk 0:00:59.9]} 21.
Rc1 {[%clk 0:00:34.4]} 21... a3 {[%clk 0:00:48.6]} 22. bxa3 {[%clk 0:00:33]}
22... Qxc2 {[%clk 0:00:49.4]} 23. Rxc2 {[%clk 0:00:33.7]} 23... Rxe4 {[%clk
0:00:50.4]} 24. Rd7 {[%clk 0:00:27.3]} 24... Re7 {[%clk 0:00:38.4]} 25. Rxe7
{[%clk 0:00:21.4]} 25... Bxe7 {[%clk 0:00:40.3]} 26. Rc3 {[%clk 0:00:22.4]}
26... Rxa3 {[%clk 0:00:39.8]} 27. Rxa3 {[%clk 0:00:23.2]} 27... Bxa3 {[%clk
0:00:41.7]} 28. Ne5 {[%clk 0:00:24.2]} 28... Bd6 {[%clk 0:00:38]} 29. Nd3 {[%clk
0:00:24.7]} 29... Kf8 {[%clk 0:00:35.9]} 30. Kf3 {[%clk 0:00:26.2]} 30... c6
{[%clk 0:00:37.2]} 31. Ke4 {[%clk 0:00:27.3]} 31... Ke7 {[%clk 0:00:35.7]} 32.
h3 {[%clk 0:00:28]} 32... Ke6 {[%clk 0:00:30.9]} 33. g4 {[%clk 0:00:28.1]} 33...
g6 {[%clk 0:00:29.8]} 34. f3 {[%clk 0:00:28]} 34... f5+ {[%clk 0:00:30.8]} 35.
Kd4 {[%clk 0:00:27]} 35... b5 {[%clk 0:00:21.8]} 36. cxb5 {[%clk 0:00:27.3]}
36... cxb5 {[%clk 0:00:22.3]} 37. Nc1 {[%clk 0:00:24.2]} 37... b4 {[%clk
0:00:22.1]} 38. Nb3 {[%clk 0:00:24.8]} 38... Be5+ {[%clk 0:00:21.7]} 39. Kc4
{[%clk 0:00:25.9]} 39... Bc3 {[%clk 0:00:22.7]} 40. Nc5+ {[%clk 0:00:25.5]}
40... Ke5 {[%clk 0:00:22.7]} 41. Nd3+ {[%clk 0:00:27]} 41... Kf6 {[%clk
0:00:18.2]} 42. Nf4 {[%clk 0:00:23.8]} 42... Kg5 {[%clk 0:00:14.6]} 43. Ng2
{[%clk 0:00:24.9]} 43... fxg4 {[%clk 0:00:10.1]} 44. fxg4 {[%clk 0:00:26.1]}
44... h5 {[%clk 0:00:09]} 45. gxh5 {[%clk 0:00:27.2]} 45... gxh5 {[%clk
0:00:10.3]} 46. Kd3 {[%clk 0:00:27]} 46... Kf5 {[%clk 0:00:10.7]} 47. Ke3 {[%clk
0:00:17.3]} 47... b3 {[%clk 0:00:09.9]} 48. Kd3 {[%clk 0:00:18.8]} 48... b2
{[%clk 0:00:10.5]} 49. Kc2 {[%clk 0:00:19.7]} 49... Bd4 {[%clk 0:00:08.9]} 50.
Kb1 {[%clk 0:00:19]} 50... Ke4 {[%clk 0:00:04]} 51. Kc2 {[%clk 0:00:20.2]} 1-0

[Event "*** Titled Tuesday Blitz"]
[Site "Chess.com"]
[Date "2018.05.01"]
[Round "10"]
[White "FearlessKing64"]
[Black "toad"]
[Result "1-0"]
[WhiteElo "2168"]
[BlackElo "2174"]
[TimeControl "180+2"]
[EndTime "15:14:14 PDT"]
[Termination "FearlessKing64 won on time"]

1. e4 {[%clk 0:03:01.9]} 1... c5 {[%clk 0:03:00.5]} 2. Nf3 {[%clk 0:03:02.7]}
2... d6 {[%clk 0:03:01.3]} 3. d4 {[%clk 0:03:03]} 3... cxd4 {[%clk 0:03:03.2]}
4. Nxd4 {[%clk 0:03:04.3]} 4... Nf6 {[%clk 0:03:04.6]} 5. f3 {[%clk 0:03:05.3]}
5... e5 {[%clk 0:03:04.6]} 6. Bb5+ {[%clk 0:03:05]} 6... Nbd7 {[%clk 0:02:50.2]}
7. Nf5 {[%clk 0:03:05.2]} 7... Be7 {[%clk 0:02:49.2]} 8. Nxg7+ {[%clk
0:03:04.5]} 8... Kf8 {[%clk 0:02:50.3]} 9. Bh6 {[%clk 0:02:57.3]} 9... Kg8
{[%clk 0:02:51.1]} 10. Nf5 {[%clk 0:02:54]} 10... Nc5 {[%clk 0:02:52.4]} 11. Nc3
{[%clk 0:02:32.2]} 11... Bxf5 {[%clk 0:02:48.3]} 12. exf5 {[%clk 0:02:32.7]}
12... Bf8 {[%clk 0:02:49.9]} 13. Bg5 {[%clk 0:02:19.7]} 13... h6 {[%clk
0:02:40.3]} 14. Bxf6 {[%clk 0:02:19.9]} 14... Qxf6 {[%clk 0:02:40.8]} 15. Bd3
{[%clk 0:02:12.9]} 15... Rd8 {[%clk 0:02:34.6]} 16. Nd5 {[%clk 0:02:13.1]} 16...
Qh4+ {[%clk 0:02:29.9]} 17. g3 {[%clk 0:02:05.7]} 17... Qd4 {[%clk 0:02:31.1]}
18. f6 {[%clk 0:02:02.1]} 18... Nxd3+ {[%clk 0:02:29.3]} 19. Qxd3 {[%clk
0:02:02.4]} 19... Qxd3 {[%clk 0:02:30.5]} 20. cxd3 {[%clk 0:02:04.3]} 20... Rc8
{[%clk 0:02:29.4]} 21. Kd2 {[%clk 0:02:03.4]} 21... h5 {[%clk 0:02:30]} 22. Rac1
{[%clk 0:02:00.2]} 22... Bh6+ {[%clk 0:02:30.7]} 23. f4 {[%clk 0:02:01.5]} 23...
Kh7 {[%clk 0:02:25.2]} 24. Ke2 {[%clk 0:01:40.5]} 24... exf4 {[%clk 0:02:18.8]}
25. gxf4 {[%clk 0:01:41.6]} 25... Rc5 {[%clk 0:02:19.7]} 26. Rxc5 {[%clk
0:01:36.7]} 26... dxc5 {[%clk 0:02:21.6]} 27. Kf3 {[%clk 0:01:36]} 27... Rd8
{[%clk 0:02:22.4]} 28. Ke4 {[%clk 0:01:36.4]} 28... Rd6 {[%clk 0:02:14.2]} 29.
f5 {[%clk 0:01:29.4]} 29... Ra6 {[%clk 0:02:03.1]} 30. a3 {[%clk 0:01:25]} 30...
Ra4+ {[%clk 0:02:04.2]} 31. Ke5 {[%clk 0:01:24.4]} 31... Rd4 {[%clk 0:02:05.3]}
32. Rd1 {[%clk 0:01:18.8]} 32... Rh4 {[%clk 0:02:01.3]} 33. b4 {[%clk
0:01:17.6]} 33... cxb4 {[%clk 0:02:01.6]} 34. axb4 {[%clk 0:01:19.3]} 34... Rxh2
{[%clk 0:02:01.9]} 35. Ne7 {[%clk 0:01:16.8]} 35... Re2+ {[%clk 0:01:58.4]} 36.
Kd5 {[%clk 0:01:18]} 36... h4 {[%clk 0:01:53.1]} 37. Rh1 {[%clk 0:01:17.5]}
37... Bg5 {[%clk 0:01:54.2]} 38. Kd6 {[%clk 0:00:57.9]} 38... Bxf6 {[%clk
0:01:54.6]} 39. Nd5 {[%clk 0:00:59.1]} 39... Bg5 {[%clk 0:01:52.4]} 40. f6
{[%clk 0:00:59.7]} 40... Kg6 {[%clk 0:01:47.5]} 41. Rf1 {[%clk 0:00:57.3]} 41...
h3 {[%clk 0:01:47.4]} 42. Ne7+ {[%clk 0:00:58]} 42... Kh5 {[%clk 0:01:46.9]} 43.
Nf5 {[%clk 0:00:55.7]} 43... Rg2 {[%clk 0:01:38.6]} 44. Ke7 {[%clk 0:00:49.4]}
44... h2 {[%clk 0:01:31]} 45. Rh1 {[%clk 0:00:50.1]} 45... Kg4 {[%clk 0:01:30]}
46. Nd6 {[%clk 0:00:41.1]} 46... Rf2 {[%clk 0:01:19.1]} 47. Ne4 {[%clk
0:00:40.8]} 47... Re2 {[%clk 0:01:04.9]} 48. Kxf7 {[%clk 0:00:39]} 48... Bf4
{[%clk 0:01:00.9]} 49. Kg6 {[%clk 0:00:29.1]} 49... Rc2 {[%clk 0:00:30.1]} 50.
f7 {[%clk 0:00:30.1]} 50... Rc8 {[%clk 0:00:21.6]} 51. Kg7 {[%clk 0:00:31.2]}
51... Be5+ {[%clk 0:00:21.6]} 52. Kg6 {[%clk 0:00:32]} 52... Kf3 {[%clk
0:00:21.3]} 53. Kf5 {[%clk 0:00:30.1]} 1-0